[Event "*** Titled Tuesday Blitz"]
[Site "Chess.com"]
[Date "2020.12.29"]
[Round "10"]
[White "Snowflake"]
[Black "Piacramling"]
[Result "1-0"]
[WhiteElo "2424"]
[BlackElo "2247"]
[TimeControl "180+1"]
[EndTime "11:55:39 PST"]
[Termination "Snowflake won on time"]

1. Nf3 {[%clk 0:02:55.1]} 1... c5 {[%clk 0:02:57.7]} 2. e4 {[%clk 0:02:50.5]}
2... d6 {[%clk 0:02:52.9]} 3. b4 {[%clk 0:02:50]} 3... cxb4 {[%clk 0:02:44.1]}
4. a3 {[%clk 0:02:50.2]} 4... bxa3 {[%clk 0:02:36.9]} 5. Nxa3 {[%clk 0:02:51.1]}
5... Nf6 {[%clk 0:02:35.8]} 6. e5 {[%clk 0:02:32.9]} 6... dxe5 {[%clk 0:02:35]}
7. Nxe5 {[%clk 0:02:33.8]} 7... Qd4 {[%clk 0:02:29.3]} 8. Bb5+ {[%clk 0:02:27]}
8... Nbd7 {[%clk 0:02:23.1]} 9. Nxd7 {[%clk 0:02:25.8]} 9... Bxd7 {[%clk
0:02:17.9]} 10. Bxd7+ {[%clk 0:02:22.3]} 10... Qxd7 {[%clk 0:02:13.9]} 11. d4
{[%clk 0:02:18.4]} 11... g6 {[%clk 0:02:10.7]} 12. O-O {[%clk 0:02:09.1]} 12...
Bg7 {[%clk 0:02:10.5]} 13. c3 {[%clk 0:02:09.6]} 13... O-O {[%clk 0:02:10]} 14.
Nc4 {[%clk 0:02:10]} 14... b5 {[%clk 0:01:57.5]} 15. Ne5 {[%clk 0:02:06.6]}
15... Qd5 {[%clk 0:01:57]} 16. Ba3 {[%clk 0:02:03]} 16... Rfe8 {[%clk
0:01:56.5]} 17. Qe2 {[%clk 0:01:57.3]} 17... e6 {[%clk 0:01:52.9]} 18. Rab1
{[%clk 0:01:49.8]} 18... a6 {[%clk 0:01:52.4]} 19. c4 {[%clk 0:01:49.5]} 19...
bxc4 {[%clk 0:01:41.2]} 20. Nxc4 {[%clk 0:01:46.2]} 20... Qxd4 {[%clk
0:01:28.7]} 21. Rb7 {[%clk 0:01:18.1]} 21... Qe4 {[%clk 0:01:18.5]} 22. Qxe4
{[%clk 0:01:12.9]} 22... Nxe4 {[%clk 0:01:17.9]} 23. f3 {[%clk 0:01:13]} 23...
Nc3 {[%clk 0:01:05]} 24. Nd6 {[%clk 0:01:09.7]} 24... Reb8 {[%clk 0:01:00.5]}
25. Rd7 {[%clk 0:00:53.2]} 25... Nb5 {[%clk 0:00:44.4]} 26. Nxb5 {[%clk
0:00:19]} 26... axb5 {[%clk 0:00:43.7]} 27. Bb4 {[%clk 0:00:19.4]} 27... Rd8
{[%clk 0:00:33.2]} 28. Rb7 {[%clk 0:00:18.5]} 28... Rab8 {[%clk 0:00:26.1]} 29.
Rc7 {[%clk 0:00:18.8]} 29... Rd5 {[%clk 0:00:15.9]} 30. Rb1 {[%clk 0:00:16.6]}
30... h5 {[%clk 0:00:14.7]} 31. Kf2 {[%clk 0:00:16]} 31... Rbd8 {[%clk
0:00:12.4]} 32. g3 {[%clk 0:00:14.9]} 32... Rd3 {[%clk 0:00:09.6]} 33. Rb7
{[%clk 0:00:13.4]} 33... R8d5 {[%clk 0:00:09.2]} 34. Kg2 {[%clk 0:00:12.1]}
34... Rf5 {[%clk 0:00:08.5]} 35. f4 {[%clk 0:00:09.6]} 35... Rfd5 {[%clk
0:00:08.5]} 36. Kh3 {[%clk 0:00:09.8]} 36... Re3 {[%clk 0:00:08.4]} 37. Rb8+
{[%clk 0:00:09.9]} 37... Kh7 {[%clk 0:00:07.5]} 38. Rb7 {[%clk 0:00:10.8]} 38...
Rf5 {[%clk 0:00:07.4]} 39. Bd6 {[%clk 0:00:09.1]} 39... Re2 {[%clk 0:00:06.8]}
40. R1xb5 {[%clk 0:00:09]} 40... Rxb5 {[%clk 0:00:04.8]} 41. Rxb5 {[%clk
0:00:09.9]} 41... Rc2 {[%clk 0:00:04.1]} 42. Bc5 {[%clk 0:00:06.2]} 42... Bf6
{[%clk 0:00:02.7]} 43. Be3 {[%clk 0:00:05.1]} 43... Kg7 {[%clk 0:00:02.2]} 44.
Rb7 {[%clk 0:00:05.2]} 44... Re2 {[%clk 0:00:01.6]} 45. Bc5 {[%clk 0:00:04.6]}
1-0

[Event "*** Titled Tuesday Blitz"]
[Site "Chess.com"]
[Date "2020.12.29"]
[Round "10"]
[White "Kislov_Oleg"]
[Black "Harsha_Bharathakoti"]
[Result "0-1"]
[WhiteElo "2470"]
[BlackElo "2803"]
[TimeControl "180+1"]
[EndTime "11:55:44 PST"]
[Termination "Harsha_Bharathakoti won by resignation"]

1. e4 {[%clk 0:03:00.9]} 1... c5 {[%clk 0:02:56.5]} 2. Nf3 {[%clk 0:03:00.7]}
2... Nc6 {[%clk 0:02:56.6]} 3. c3 {[%clk 0:03:00.8]} 3... Nf6 {[%clk 0:02:56.3]}
4. e5 {[%clk 0:03:01.3]} 4... Nd5 {[%clk 0:02:56.7]} 5. d4 {[%clk 0:03:02]} 5...
cxd4 {[%clk 0:02:57.5]} 6. cxd4 {[%clk 0:03:02.6]} 6... e6 {[%clk 0:02:58.3]} 7.
Nc3 {[%clk 0:03:01]} 7... Nxc3 {[%clk 0:02:58.5]} 8. bxc3 {[%clk 0:03:01.1]}
8... d6 {[%clk 0:02:59.3]} 9. exd6 {[%clk 0:02:58.2]} 9... Qxd6 {[%clk
0:03:00.2]} 10. Bd3 {[%clk 0:02:57.7]} 10... Be7 {[%clk 0:03:00.8]} 11. O-O
{[%clk 0:02:41.8]} 11... O-O {[%clk 0:03:00]} 12. Qc2 {[%clk 0:02:37.8]} 12...
h6 {[%clk 0:02:49.2]} 13. a4 {[%clk 0:02:25.2]} 13... b6 {[%clk 0:02:47.8]} 14.
Ba3 {[%clk 0:02:25.2]} 14... Qc7 {[%clk 0:02:46.1]} 15. Bxe7 {[%clk 0:02:21.1]}
15... Qxe7 {[%clk 0:02:45]} 16. Rfe1 {[%clk 0:02:08.9]} 16... Qc7 {[%clk
0:02:18.4]} 17. Qe2 {[%clk 0:01:58.4]} 17... Bb7 {[%clk 0:01:57.4]} 18. Qe4
{[%clk 0:01:57.8]} 18... g6 {[%clk 0:01:57.5]} 19. Qh4 {[%clk 0:01:57.7]} 19...
Kg7 {[%clk 0:01:58.1]} 20. Re3 {[%clk 0:01:44.1]} 20... Qd8 {[%clk 0:01:39.2]}
21. Qg4 {[%clk 0:01:38.2]} 21... Qf6 {[%clk 0:01:33.4]} 22. h4 {[%clk
0:01:29.7]} 22... Ne7 {[%clk 0:01:18.5]} 23. Ne5 {[%clk 0:01:27.6]} 23... Nf5
{[%clk 0:01:18.9]} 24. Rh3 {[%clk 0:01:10.4]} 24... h5 {[%clk 0:00:38.9]} 25.
Qf4 {[%clk 0:01:10.1]} 25... Rfd8 {[%clk 0:00:29.8]} 26. a5 {[%clk 0:00:59.1]}
26... Nd6 {[%clk 0:00:22.1]} 27. Qe3 {[%clk 0:00:36.1]} 27... Rac8 {[%clk
0:00:21.9]} 28. axb6 {[%clk 0:00:35.1]} 28... axb6 {[%clk 0:00:22.8]} 29. c4
{[%clk 0:00:32.1]} 29... Ra8 {[%clk 0:00:21.9]} 30. Rb1 {[%clk 0:00:30.7]} 30...
Nf5 {[%clk 0:00:18.4]} 31. Bxf5 {[%clk 0:00:26.9]} 31... exf5 {[%clk 0:00:19.3]}
32. d5 {[%clk 0:00:22.6]} 32... f4 {[%clk 0:00:18.9]} 33. Qxb6 {[%clk
0:00:20.9]} 33... Qxe5 {[%clk 0:00:17.7]} 34. Qxb7 {[%clk 0:00:21.5]} 34... Rab8
{[%clk 0:00:17.9]} 35. Ra3 {[%clk 0:00:15.4]} 35... Rxb7 {[%clk 0:00:16.5]} 36.
Rxb7 {[%clk 0:00:14.5]} 36... Rc8 {[%clk 0:00:13.7]} 37. Raa7 {[%clk 0:00:14.6]}
37... Qf5 {[%clk 0:00:05.7]} 38. Rc7 {[%clk 0:00:13.3]} 38... Rxc7 {[%clk
0:00:05.2]} 39. Rxc7 {[%clk 0:00:13.4]} 39... f3 {[%clk 0:00:06.1]} 40. gxf3
{[%clk 0:00:12.7]} 40... Qf4 {[%clk 0:00:05]} 41. Rc6 {[%clk 0:00:12.2]} 41...
Qxf3 {[%clk 0:00:04.6]} 42. Kf1 {[%clk 0:00:09]} 42... Qd1+ {[%clk 0:00:04.4]}
43. Kg2 {[%clk 0:00:09.4]} 43... Qg4+ {[%clk 0:00:05.3]} 44. Kf1 {[%clk
0:00:09.7]} 44... Qxh4 {[%clk 0:00:06.2]} 45. Ke2 {[%clk 0:00:09.5]} 45... Qe4+
{[%clk 0:00:06.3]} 46. Kd2 {[%clk 0:00:09.3]} 46... h4 {[%clk 0:00:05.4]} 47.
Kc3 {[%clk 0:00:05.7]} 47... h3 {[%clk 0:00:05.4]} 48. Rb6 {[%clk 0:00:05.2]}
0-1

[Event "*** Titled Tuesday Blitz"]
[Site "Chess.com"]
[Date "2020.12.29"]
[Round "10"]
[White "Witik"]
[Black "Keks2017"]
[Result "0-1"]
[WhiteElo "2708"]
[BlackElo "2581"]
[TimeControl "180+1"]
[EndTime "11:55:47 PST"]
[Termination "Keks2017 won by resignation"]

1. d4 {[%clk 0:03:00.9]} 1... d6 {[%clk 0:02:59.9]} 2. e4 {[%clk 0:03:00.4]}
2... Nf6 {[%clk 0:02:59.5]} 3. Nc3 {[%clk 0:03:00.3]} 3... e5 {[%clk 0:02:57.2]}
4. Nge2 {[%clk 0:03:00]} 4... Be7 {[%clk 0:02:57.1]} 5. h3 {[%clk 0:03:00.1]}
5... c6 {[%clk 0:02:45.9]} 6. g4 {[%clk 0:02:59.6]} 6... b5 {[%clk 0:02:45]} 7.
Bg2 {[%clk 0:02:50.4]} 7... h5 {[%clk 0:02:41.5]} 8. g5 {[%clk 0:02:47.9]} 8...
Nfd7 {[%clk 0:02:41.3]} 9. h4 {[%clk 0:02:40.7]} 9... b4 {[%clk 0:02:38.8]} 10.
Na4 {[%clk 0:02:39.7]} 10... Nb6 {[%clk 0:02:37.4]} 11. Nxb6 {[%clk 0:02:35.4]}
11... axb6 {[%clk 0:02:37.4]} 12. Ng3 {[%clk 0:02:23.1]} 12... g6 {[%clk
0:02:35.4]} 13. f4 {[%clk 0:02:20.9]} 13... Bg4 {[%clk 0:02:33.3]} 14. Qd3
{[%clk 0:02:06.7]} 14... Nd7 {[%clk 0:02:25.7]} 15. O-O {[%clk 0:02:05.3]} 15...
Qc7 {[%clk 0:02:18.5]} 16. c3 {[%clk 0:01:58.6]} 16... c5 {[%clk 0:02:15.3]} 17.
Be3 {[%clk 0:01:51]} 17... bxc3 {[%clk 0:02:00.9]} 18. bxc3 {[%clk 0:01:50.6]}
18... exd4 {[%clk 0:01:56.6]} 19. cxd4 {[%clk 0:01:50.5]} 19... c4 {[%clk
0:01:56.4]} 20. Qc3 {[%clk 0:01:37.2]} 20... d5 {[%clk 0:01:53.6]} 21. a4 {[%clk
0:01:28.6]} 21... O-O {[%clk 0:01:40.7]} 22. e5 {[%clk 0:01:27.3]} 22... Qc6
{[%clk 0:01:33.7]} 23. f5 {[%clk 0:01:25.5]} 23... Rfd8 {[%clk 0:01:23.4]} 24.
Qc2 {[%clk 0:01:02]} 24... Nf8 {[%clk 0:01:20.4]} 25. Bf3 {[%clk 0:00:37.7]}
25... Bxf3 {[%clk 0:01:18.1]} 26. Rxf3 {[%clk 0:00:37.5]} 26... b5 {[%clk
0:01:18]} 27. Raf1 {[%clk 0:00:36.6]} 27... b4 {[%clk 0:01:15.8]} 28. e6 {[%clk
0:00:35.7]} 28... fxe6 {[%clk 0:01:09.4]} 29. fxg6 {[%clk 0:00:32.5]} 29... b3
{[%clk 0:01:09.2]} 30. Qf2 {[%clk 0:00:29.2]} 30... Nxg6 {[%clk 0:00:32.3]} 31.
Nxh5 {[%clk 0:00:29.1]} 31... Rf8 {[%clk 0:00:27]} 32. Nf6+ {[%clk 0:00:27.8]}
32... Bxf6 {[%clk 0:00:22.5]} 33. Rxf6 {[%clk 0:00:27.7]} 33... Qe8 {[%clk
0:00:20.9]} 34. h5 {[%clk 0:00:22.6]} 34... Ne7 {[%clk 0:00:20.6]} 35. Bf4
{[%clk 0:00:15]} 35... Nf5 {[%clk 0:00:16]} 36. Rg6+ {[%clk 0:00:13]} 36... Kh7
{[%clk 0:00:15.4]} 37. Be5 {[%clk 0:00:12]} 37... Ra7 {[%clk 0:00:14]} 38. Qb2
{[%clk 0:00:05.2]} 38... Rg8 {[%clk 0:00:12.3]} 39. Rxg8 {[%clk 0:00:04.7]}
39... Kxg8 {[%clk 0:00:12.3]} 40. g6 {[%clk 0:00:05]} 40... Qe7 {[%clk
0:00:10.8]} 41. Qg2 {[%clk 0:00:04.9]} 41... c3 {[%clk 0:00:09.9]} 42. h6 {[%clk
0:00:02.3]} 42... Nxh6 {[%clk 0:00:09.5]} 43. g7 {[%clk 0:00:01.9]} 43... Qxg7
{[%clk 0:00:08.3]} 44. Bxg7 {[%clk 0:00:01.8]} 44... Rxg7 {[%clk 0:00:08.2]} 45.
Qxg7+ {[%clk 0:00:02.1]} 45... Kxg7 {[%clk 0:00:08.5]} 46. a5 {[%clk 0:00:03]}
46... c2 {[%clk 0:00:08.7]} 47. a6 {[%clk 0:00:03.8]} 47... b2 {[%clk 0:00:09]}
48. a7 {[%clk 0:00:04.7]} 48... c1=Q {[%clk 0:00:09.2]} 49. a8=Q {[%clk
0:00:05.2]} 49... Qxf1+ {[%clk 0:00:09.1]} 50. Kxf1 {[%clk 0:00:04.7]} 50...
b1=Q+ {[%clk 0:00:09.4]} 0-1

[Event "*** Titled Tuesday Blitz"]
[Site "Chess.com"]
[Date "2020.12.29"]
[Round "10"]
[White "ErikRonka"]
[Black "Chernobay_Artem"]
[Result "0-1"]
[WhiteElo "2377"]
[BlackElo "2613"]
[TimeControl "180+1"]
[EndTime "11:55:49 PST"]
[Termination "Chernobay_Artem won on time"]

1. e4 {[%clk 0:03:00.9]} 1... g6 {[%clk 0:02:52.6]} 2. d4 {[%clk 0:02:58.6]}
2... Bg7 {[%clk 0:02:53]} 3. c4 {[%clk 0:02:59]} 3... d6 {[%clk 0:02:48]} 4. Nc3
{[%clk 0:02:58.4]} 4... e5 {[%clk 0:02:47.5]} 5. Nge2 {[%clk 0:02:57.3]} 5...
Nc6 {[%clk 0:02:47.2]} 6. Be3 {[%clk 0:02:57.3]} 6... Nf6 {[%clk 0:02:25]} 7. f3
{[%clk 0:02:57.1]} 7... O-O {[%clk 0:02:18.4]} 8. d5 {[%clk 0:02:55.5]} 8... Na5
{[%clk 0:02:04.6]} 9. b3 {[%clk 0:02:53.9]} 9... c5 {[%clk 0:02:04.2]} 10. Ng3
{[%clk 0:02:42.4]} 10... h5 {[%clk 0:02:03.4]} 11. Be2 {[%clk 0:02:42.1]} 11...
h4 {[%clk 0:02:02.8]} 12. Nf1 {[%clk 0:02:42.7]} 12... Nh5 {[%clk 0:02:02.3]}
13. g3 {[%clk 0:02:09.7]} 13... f5 {[%clk 0:02:00.8]} 14. exf5 {[%clk
0:02:03.2]} 14... gxf5 {[%clk 0:01:56.6]} 15. Qd2 {[%clk 0:01:52.2]} 15... f4
{[%clk 0:01:45.6]} 16. Bf2 {[%clk 0:01:47.5]} 16... e4 {[%clk 0:01:17.8]} 17.
fxe4 {[%clk 0:01:40.5]} 17... fxg3 {[%clk 0:01:06.6]} 18. hxg3 {[%clk
0:00:18.3]} 18... Qf6 {[%clk 0:01:03.9]} 19. Bxh5 {[%clk 0:00:15.4]} 19... Qxc3
{[%clk 0:01:03.1]} 20. Rd1 {[%clk 0:00:12.9]} 20... h3 {[%clk 0:00:43.7]} 21.
Be3 {[%clk 0:00:08]} 21... b5 {[%clk 0:00:35.7]} 22. cxb5 {[%clk 0:00:07]} 22...
c4 {[%clk 0:00:35]} 23. Qxc3 {[%clk 0:00:06.2]} 23... Bxc3+ {[%clk 0:00:34.3]}
24. Ke2 {[%clk 0:00:07.1]} 24... cxb3 {[%clk 0:00:28.3]} 25. axb3 {[%clk
0:00:08]} 25... Bd7 {[%clk 0:00:28.3]} 26. g4 {[%clk 0:00:07.9]} 26... Bxb5+
{[%clk 0:00:27.2]} 27. Rd3 {[%clk 0:00:08.2]} 27... Nxb3 {[%clk 0:00:25.1]} 28.
Rxh3 {[%clk 0:00:05.8]} 28... Rxf1 {[%clk 0:00:23.3]} 29. Kxf1 {[%clk
0:00:05.5]} 29... Bxd3+ {[%clk 0:00:23.1]} 30. Kg1 {[%clk 0:00:05.1]} 30... Bxe4
{[%clk 0:00:21]} 31. Bf2 {[%clk 0:00:03.6]} 31... Nd4 {[%clk 0:00:17.8]} 32. g5
{[%clk 0:00:01.8]} 32... Rc8 {[%clk 0:00:12.8]} 33. Rxc3 {[%clk 0:00:01.2]}
33... Rxc3 {[%clk 0:00:12.3]} 34. Bxd4 {[%clk 0:00:02.1]} 34... Rf3 {[%clk
0:00:12.7]} 35. Bxa7 {[%clk 0:00:01.4]} 35... Rg3+ {[%clk 0:00:12.2]} 36. Kf2
{[%clk 0:00:01.9]} 36... Rxg5 {[%clk 0:00:12.9]} 37. Be2 {[%clk 0:00:01.7]}
37... Rf5+ {[%clk 0:00:12.2]} 38. Ke1 {[%clk 0:00:01.7]} 38... Bxd5 {[%clk
0:00:12.3]} 39. Be3 {[%clk 0:00:02.6]} 39... Re5 {[%clk 0:00:11.8]} 40. Kd2
{[%clk 0:00:03.5]} 40... Kf7 {[%clk 0:00:11.5]} 41. Bd4 {[%clk 0:00:04.1]} 41...
Re4 {[%clk 0:00:11.1]} 42. Bc3 {[%clk 0:00:05]} 42... Rh4 {[%clk 0:00:10.7]} 43.
Bd3 {[%clk 0:00:04.7]} 43... Rh2+ {[%clk 0:00:10.3]} 44. Ke3 {[%clk 0:00:04.4]}
44... Rh3+ {[%clk 0:00:10.5]} 45. Kd2 {[%clk 0:00:03.7]} 45... Ke6 {[%clk
0:00:10.6]} 46. Bd4 {[%clk 0:00:04.1]} 46... Rh4 {[%clk 0:00:09.5]} 47. Bf2
{[%clk 0:00:03.7]} 47... Ra4 {[%clk 0:00:07.1]} 48. Ke3 {[%clk 0:00:03.2]} 48...
Ra3 {[%clk 0:00:06.6]} 49. Kd4 {[%clk 0:00:01.3]} 49... Ra4+ {[%clk 0:00:06.2]}
50. Ke3 {[%clk 0:00:01.2]} 50... Bc4 {[%clk 0:00:06.6]} 0-1

[Event "*** Titled Tuesday Blitz"]
[Site "Chess.com"]
[Date "2020.12.29"]
[Round "10"]
[White "Abdimalik_Abdisalimov"]
[Black "annacramling"]
[Result "1-0"]
[WhiteElo "2402"]
[BlackElo "2075"]
[TimeControl "180+1"]
[EndTime "11:55:50 PST"]
[Termination "Abdimalik_Abdisalimov won on time"]

1. d4 {[%clk 0:03:00.9]} 1... Nf6 {[%clk 0:02:59]} 2. c4 {[%clk 0:03:01.1]} 2...
e6 {[%clk 0:02:59.5]} 3. Nf3 {[%clk 0:02:59.1]} 3... d5 {[%clk 0:02:58.5]} 4. g3
{[%clk 0:02:58.2]} 4... Bb4+ {[%clk 0:02:57.2]} 5. Bd2 {[%clk 0:02:57.9]} 5...
Bd6 {[%clk 0:02:57.6]} 6. Bg2 {[%clk 0:02:56.2]} 6... c6 {[%clk 0:02:56.7]} 7.
O-O {[%clk 0:02:55]} 7... Nbd7 {[%clk 0:02:56.5]} 8. Nc3 {[%clk 0:02:50.2]} 8...
O-O {[%clk 0:02:55]} 9. Qc2 {[%clk 0:02:43.8]} 9... dxc4 {[%clk 0:02:48.1]} 10.
a4 {[%clk 0:02:41.2]} 10... Re8 {[%clk 0:02:39]} 11. Rfd1 {[%clk 0:02:27.1]}
11... Qc7 {[%clk 0:02:34.5]} 12. e4 {[%clk 0:02:20.1]} 12... e5 {[%clk
0:02:33.8]} 13. Rac1 {[%clk 0:01:57.1]} 13... exd4 {[%clk 0:02:22.8]} 14. Nxd4
{[%clk 0:01:54]} 14... Ne5 {[%clk 0:02:22.7]} 15. f4 {[%clk 0:01:31.1]} 15...
Nd3 {[%clk 0:02:12.3]} 16. Rb1 {[%clk 0:01:25.7]} 16... Bc5 {[%clk 0:02:09.2]}
17. Ne2 {[%clk 0:01:21.6]} 17... Qb6 {[%clk 0:01:38.4]} 18. Qxc4 {[%clk
0:01:10.9]} 18... Bg4 {[%clk 0:01:08.5]} 19. Qxd3 {[%clk 0:00:59.4]} 19... Bxe2
{[%clk 0:01:05.8]} 20. Qxe2 {[%clk 0:00:58.6]} 20... Bxd4+ {[%clk 0:01:06]} 21.
Kh1 {[%clk 0:00:58.5]} 21... Rad8 {[%clk 0:00:56.7]} 22. e5 {[%clk 0:00:52.8]}
22... Nd5 {[%clk 0:00:53.7]} 23. b4 {[%clk 0:00:41.9]} 23... Nc3 {[%clk
0:00:25.9]} 24. Bxc3 {[%clk 0:00:39.3]} 24... Bxc3 {[%clk 0:00:26.8]} 25. b5
{[%clk 0:00:35]} 25... c5 {[%clk 0:00:15.4]} 26. Rxd8 {[%clk 0:00:27.4]} 26...
Rxd8 {[%clk 0:00:16.3]} 27. Rd1 {[%clk 0:00:25.2]} 27... Bd4 {[%clk 0:00:08.3]}
28. h3 {[%clk 0:00:19.9]} 28... h6 {[%clk 0:00:07.3]} 29. Qc4 {[%clk 0:00:19.1]}
29... Qa5 {[%clk 0:00:06.2]} 30. Bd5 {[%clk 0:00:15.1]} 30... Rf8 {[%clk
0:00:03.8]} 31. e6 {[%clk 0:00:11.9]} 31... fxe6 {[%clk 0:00:03.6]} 32. Bxe6+
{[%clk 0:00:12.1]} 32... Kh8 {[%clk 0:00:04.3]} 33. Kg2 {[%clk 0:00:09.1]} 33...
Qc7 {[%clk 0:00:04.4]} 34. Bd5 {[%clk 0:00:08.1]} 34... Re8 {[%clk 0:00:04.2]}
35. Bf3 {[%clk 0:00:07.6]} 35... Re3 {[%clk 0:00:04.2]} 36. Rd2 {[%clk
0:00:05.9]} 36... Rc3 {[%clk 0:00:04.2]} 37. Qe6 {[%clk 0:00:03.4]} 37... Qd8
{[%clk 0:00:03.5]} 38. Re2 {[%clk 0:00:02.5]} 38... Rd3 {[%clk 0:00:03]} 39.
Qe8+ {[%clk 0:00:02.5]} 39... Qxe8 {[%clk 0:00:02.5]} 40. Rxe8+ {[%clk
0:00:03.4]} 40... Kh7 {[%clk 0:00:03.1]} 41. Be4+ {[%clk 0:00:03.8]} 41... g6
{[%clk 0:00:03.7]} 42. Bxd3 {[%clk 0:00:04.7]} 42... Bc3 {[%clk 0:00:02.9]} 43.
Bc4 {[%clk 0:00:05.6]} 43... Bb4 {[%clk 0:00:02.8]} 44. Re7+ {[%clk 0:00:06.5]}
44... Kh8 {[%clk 0:00:03.3]} 45. Rxb7 {[%clk 0:00:06.8]} 45... Bc3 {[%clk
0:00:02]} 46. Rxa7 {[%clk 0:00:07.7]} 46... Bd4 {[%clk 0:00:02.3]} 47. b6 {[%clk
0:00:08.6]} 1-0

[Event "*** Titled Tuesday Blitz"]
[Site "Chess.com"]
[Date "2020.12.29"]
[Round "10"]
[White "Jungle_Jaguar"]
[Black "elamier"]
[Result "1-0"]
[WhiteElo "2623"]
[BlackElo "2438"]
[TimeControl "180+1"]
[EndTime "11:55:52 PST"]
[Termination "Jungle_Jaguar won by resignation"]

1. e4 {[%clk 0:03:00.9]} 1... c5 {[%clk 0:02:59]} 2. Nf3 {[%clk 0:03:00.9]} 2...
Nc6 {[%clk 0:02:59.5]} 3. Bb5 {[%clk 0:03:00.2]} 3... g6 {[%clk 0:02:58.3]} 4.
Bxc6 {[%clk 0:02:59.3]} 4... dxc6 {[%clk 0:02:58]} 5. h3 {[%clk 0:02:59.2]} 5...
Bg7 {[%clk 0:02:57.8]} 6. d3 {[%clk 0:02:59.5]} 6... Nf6 {[%clk 0:02:57.5]} 7.
Nc3 {[%clk 0:02:59.7]} 7... Nd7 {[%clk 0:02:57.1]} 8. Be3 {[%clk 0:02:59.7]}
8... e5 {[%clk 0:02:55.6]} 9. Qd2 {[%clk 0:02:59.2]} 9... O-O {[%clk 0:02:54.1]}
10. Bh6 {[%clk 0:02:53.3]} 10... Re8 {[%clk 0:02:52.6]} 11. O-O {[%clk 0:02:51]}
11... Nf8 {[%clk 0:02:47.3]} 12. Bxg7 {[%clk 0:02:26.9]} 12... Kxg7 {[%clk
0:02:46.4]} 13. Ne2 {[%clk 0:02:27.3]} 13... Qc7 {[%clk 0:02:43.8]} 14. Qc3
{[%clk 0:02:23.7]} 14... f6 {[%clk 0:02:39.9]} 15. Qxc5 {[%clk 0:02:19.5]} 15...
Ne6 {[%clk 0:02:36.3]} 16. Qc3 {[%clk 0:02:18.8]} 16... c5 {[%clk 0:02:26.3]}
17. Qd2 {[%clk 0:02:16.4]} 17... Nd4 {[%clk 0:02:24.4]} 18. Nh2 {[%clk
0:02:12.5]} 18... Be6 {[%clk 0:02:11.9]} 19. c3 {[%clk 0:02:11.8]} 19... Nxe2+
{[%clk 0:02:10.7]} 20. Qxe2 {[%clk 0:02:12]} 20... Rad8 {[%clk 0:02:11.3]} 21.
Rfd1 {[%clk 0:02:11.4]} 21... Rd7 {[%clk 0:02:07.5]} 22. Nf3 {[%clk 0:02:06.3]}
22... Red8 {[%clk 0:02:06]} 23. Ne1 {[%clk 0:02:05.6]} 23... Qb6 {[%clk
0:02:01]} 24. b3 {[%clk 0:02:02.4]} 24... Qa6 {[%clk 0:02:00.2]} 25. Qe3 {[%clk
0:01:58.4]} 25... b6 {[%clk 0:01:57]} 26. f4 {[%clk 0:01:56]} 26... exf4 {[%clk
0:01:50.1]} 27. Qxf4 {[%clk 0:01:56.9]} 27... Qa5 {[%clk 0:01:38]} 28. Qd2
{[%clk 0:01:38.3]} 28... b5 {[%clk 0:01:31.2]} 29. Qc2 {[%clk 0:01:31.7]} 29...
b4 {[%clk 0:01:16.8]} 30. c4 {[%clk 0:01:31.2]} 30... f5 {[%clk 0:01:06.3]} 31.
Qb2+ {[%clk 0:01:24.2]} 31... Kg8 {[%clk 0:01:05.7]} 32. Qe5 {[%clk 0:01:14.6]}
32... Qb6 {[%clk 0:01:01.7]} 33. Nf3 {[%clk 0:00:55.3]} 33... Qd6 {[%clk
0:00:33.7]} 34. Qxd6 {[%clk 0:00:48.8]} 34... Rxd6 {[%clk 0:00:34.3]} 35. e5
{[%clk 0:00:49.1]} 35... Rxd3 {[%clk 0:00:33.5]} 36. Re1 {[%clk 0:00:43]} 36...
h6 {[%clk 0:00:29.6]} 37. Kf2 {[%clk 0:00:37.3]} 37... Kf7 {[%clk 0:00:28.4]}
38. Re2 {[%clk 0:00:35.7]} 38... g5 {[%clk 0:00:28.2]} 39. Ne1 {[%clk
0:00:30.3]} 39... Rd2 {[%clk 0:00:26.3]} 40. a3 {[%clk 0:00:27.5]} 40... a5
{[%clk 0:00:24.2]} 41. axb4 {[%clk 0:00:27.5]} 41... axb4 {[%clk 0:00:24.6]} 42.
Ra7+ {[%clk 0:00:26.9]} 42... R8d7 {[%clk 0:00:19.4]} 43. Ra5 {[%clk 0:00:26.4]}
43... Rxe2+ {[%clk 0:00:14.3]} 44. Kxe2 {[%clk 0:00:27.3]} 44... Rc7 {[%clk
0:00:14.5]} 45. Nd3 {[%clk 0:00:27.9]} 45... f4 {[%clk 0:00:11.8]} 46. Rxc5
{[%clk 0:00:27.1]} 46... Ra7 {[%clk 0:00:10.4]} 47. Nxb4 {[%clk 0:00:22.3]}
47... Rb7 {[%clk 0:00:10.2]} 48. Rb5 {[%clk 0:00:19.7]} 48... Rxb5 {[%clk
0:00:07.2]} 49. cxb5 {[%clk 0:00:20.6]} 49... Bxb3 {[%clk 0:00:06.4]} 50. b6
{[%clk 0:00:21.1]} 50... Bc4+ {[%clk 0:00:06.9]} 51. Kd2 {[%clk 0:00:15.3]} 1-0